[Event "Titled Tuesday Blitz August 22 Late 2023"]
[White "Suyarov, Mukhammadzokhid"]
[Black "Reprintsev, Alexander"]
[WhiteFideId "14210495"]
[BlackFideId "14100541"]
[WhiteElo "2714"]
[BlackElo "2492"]
[Result "1-0"]
[Round "8"]
[TimeControl "180+1"]
[Date "2023.08.22"]
[WhiteClock "0:02:27"]
[BlackClock "0:00:11"]
[Board "76"]

1. d4 {[%clk 0:03:00]}  d5 {[%clk 0:02:48]} 2. Nc3 {[%clk 0:02:57]}  Nf6 {[%clk 0:02:45]} 3. Bf4 {[%clk 0:02:57]}  a6 {[%clk 0:02:44]} 4. e3 {[%clk 0:02:58]}  e6 {[%clk 0:02:41]} 5. g4 {[%clk 0:02:58]}  Bb4 {[%clk 0:02:21]} 6. Ne2 {[%clk 0:02:56]}  Nxg4 {[%clk 0:02:14]} 7. Rg1 {[%clk 0:02:49]}  Qh4 {[%clk 0:02:10]} 8. Bg3 {[%clk 0:02:47]}  Qf6 {[%clk 0:01:58]} 9. h3 {[%clk 0:02:45]}  Nh6 {[%clk 0:01:52]} 10. Be5 {[%clk 0:02:45]}  Qh4 {[%clk 0:01:41]} 11. Rxg7 {[%clk 0:02:36]}  Nd7 {[%clk 0:01:28]} 12. Bxc7 {[%clk 0:02:32]}  Rg8 {[%clk 0:00:38]} 13. Bg3 {[%clk 0:02:28]}  Qf6 {[%clk 0:00:28]} 14. Rxg8+ {[%clk 0:02:29]}  Nxg8 {[%clk 0:00:28]} 15. Nf4 {[%clk 0:02:30]}  Bxc3+ {[%clk 0:00:25]} 16. bxc3 {[%clk 0:02:31]}  b5 {[%clk 0:00:25]} 17. a4 {[%clk 0:02:30]}  bxa4 {[%clk 0:00:21]} 18. Rxa4 {[%clk 0:02:31]}  Nb6 {[%clk 0:00:20]} 19. Rb4 {[%clk 0:02:30]}  Qd8 {[%clk 0:00:18]} 20. Qh5 {[%clk 0:02:31]}  Nf6 {[%clk 0:00:16]} 21. Qh6 {[%clk 0:02:30]}  Ke7 {[%clk 0:00:14]} 22. Qxf6+ {[%clk 0:02:27]}  Kxf6 {[%clk 0:00:13]} 23. Bh4+ {[%clk 0:02:27]}  Kf5 {[%clk 0:00:11]} 24. Bd3# {[%clk 0:02:27]} 1-0


[Site "https://www.chess.com"]

[Event "Titled Tuesday Blitz August 22 Late 2023"]
[White "Michalczak, Thomas"]
[Black "Tanenbaum, Zachary"]
[WhiteFideId "4622634"]
[BlackFideId "2060850"]
[WhiteElo "2483"]
[BlackElo "2692"]
[Result "1-0"]
[Round "8"]
[TimeControl "180+1"]
[Date "2023.08.22"]
[WhiteClock "0:01:54"]
[BlackClock "0:00:05"]
[Board "77"]

1. e4 {[%clk 0:03:00]}  e5 {[%clk 0:02:59]} 2. Nf3 {[%clk 0:02:59]}  Nc6 {[%clk 0:02:58]} 3. Bb5 {[%clk 0:02:59]}  a6 {[%clk 0:02:58]} 4. Ba4 {[%clk 0:02:59]}  d6 {[%clk 0:02:59]} 5. O-O {[%clk 0:02:58]}  Nf6 {[%clk 0:02:59]} 6. Re1 {[%clk 0:02:57]}  Be7 {[%clk 0:02:59]} 7. c4 {[%clk 0:02:56]}  Bg4 {[%clk 0:02:58]} 8. Nc3 {[%clk 0:02:56]}  Nd7 {[%clk 0:02:57]} 9. Bxc6 {[%clk 0:02:54]}  bxc6 {[%clk 0:02:57]} 10. h3 {[%clk 0:02:54]}  Bxf3 {[%clk 0:02:57]} 11. Qxf3 {[%clk 0:02:54]}  Nc5 {[%clk 0:02:55]} 12. d3 {[%clk 0:02:54]}  O-O {[%clk 0:02:55]} 13. b3 {[%clk 0:02:53]}  Bg5 {[%clk 0:02:54]} 14. Bb2 {[%clk 0:02:52]}  a5 {[%clk 0:02:49]} 15. Rad1 {[%clk 0:02:49]}  Ne6 {[%clk 0:02:23]} 16. Ne2 {[%clk 0:02:48]}  c5 {[%clk 0:02:23]} 17. Bc3 {[%clk 0:02:40]}  a4 {[%clk 0:02:18]} 18. b4 {[%clk 0:02:34]}  cxb4 {[%clk 0:02:07]} 19. Bxb4 {[%clk 0:02:34]}  c5 {[%clk 0:01:54]} 20. Bc3 {[%clk 0:02:34]}  Qd7 {[%clk 0:01:13]} 21. Rb1 {[%clk 0:02:33]}  Rab8 {[%clk 0:01:02]} 22. Qg4 {[%clk 0:02:33]}  Qe7 {[%clk 0:00:53]} 23. Ng3 {[%clk 0:02:30]}  g6 {[%clk 0:00:53]} 24. Ne2 {[%clk 0:02:28]}  h5 {[%clk 0:00:52]} 25. Qf3 {[%clk 0:02:28]}  Bh6 {[%clk 0:00:44]} 26. g3 {[%clk 0:02:24]}  Ng5 {[%clk 0:00:43]} 27. Qg2 {[%clk 0:02:25]}  Qd7 {[%clk 0:00:43]} 28. Kh1 {[%clk 0:02:24]}  Nxh3 {[%clk 0:00:41]} 29. Rf1 {[%clk 0:02:09]}  Ng5 {[%clk 0:00:36]} 30. Rxb8 {[%clk 0:02:07]}  Rxb8 {[%clk 0:00:36]} 31. f4 {[%clk 0:02:08]}  Ne6 {[%clk 0:00:21]} 32. fxe5 {[%clk 0:02:05]}  dxe5 {[%clk 0:00:22]} 33. Bxe5 {[%clk 0:02:03]}  Rb7 {[%clk 0:00:22]} 34. Qf3 {[%clk 0:02:03]}  Ng5 {[%clk 0:00:21]} 35. Qf6 {[%clk 0:01:57]}  Qh3+ {[%clk 0:00:04]} 36. Kg1 {[%clk 0:01:57]}  Kf8 {[%clk 0:00:05]} 37. Qd8# {[%clk 0:01:54]} 1-0


[Site "https://www.chess.com"]

[Event "Titled Tuesday Blitz August 22 Late 2023"]
[White "Jorajuria Mendoza, Algol"]
[Black "Grebeniuk, Semen"]
[WhiteFideId "5128897"]
[BlackFideId "14117509"]
[WhiteElo "2429"]
[BlackElo "2569"]
[Result "1-0"]
[Round "8"]
[TimeControl "180+1"]
[Date "2023.08.22"]
[WhiteClock "0:00:12"]
[BlackClock "0:00:07"]
[Board "80"]

1. e4 {[%clk 0:03:00]}  d5 {[%clk 0:03:00]} 2. exd5 {[%clk 0:03:01]}  Qxd5 {[%clk 0:03:00]} 3. Nc3 {[%clk 0:03:01]}  Qa5 {[%clk 0:03:01]} 4. d4 {[%clk 0:03:01]}  Nf6 {[%clk 0:03:02]} 5. Bc4 {[%clk 0:03:01]}  Bf5 {[%clk 0:03:00]} 6. Nf3 {[%clk 0:03:00]}  c6 {[%clk 0:02:57]} 7. Ne5 {[%clk 0:02:59]}  e6 {[%clk 0:02:57]} 8. Bd2 {[%clk 0:02:50]}  Nbd7 {[%clk 0:02:56]} 9. Nd5 {[%clk 0:02:29]}  Qd8 {[%clk 0:02:50]} 10. Nxf6+ {[%clk 0:02:29]}  gxf6 {[%clk 0:02:50]} 11. Nf3 {[%clk 0:02:08]}  Nb6 {[%clk 0:02:47]} 12. Bb3 {[%clk 0:02:06]}  Bd6 {[%clk 0:02:45]} 13. c4 {[%clk 0:02:03]}  Nd7 {[%clk 0:02:16]} 14. Nh4 {[%clk 0:02:01]}  Bg6 {[%clk 0:02:15]} 15. Nxg6 {[%clk 0:02:00]}  hxg6 {[%clk 0:02:15]} 16. h3 {[%clk 0:01:58]}  Qc7 {[%clk 0:02:10]} 17. Qf3 {[%clk 0:01:50]}  O-O-O {[%clk 0:02:02]} 18. O-O-O {[%clk 0:01:43]}  c5 {[%clk 0:01:41]} 19. dxc5 {[%clk 0:01:27]}  Bxc5 {[%clk 0:01:40]} 20. Kb1 {[%clk 0:01:23]}  Bd4 {[%clk 0:01:34]} 21. Bf4 {[%clk 0:01:09]}  e5 {[%clk 0:01:31]} 22. Rxd4 {[%clk 0:01:07]}  exf4 {[%clk 0:01:31]} 23. Qxf4 {[%clk 0:01:06]}  Qxf4 {[%clk 0:01:22]} 24. Rxf4 {[%clk 0:01:07]}  f5 {[%clk 0:01:03]} 25. c5 {[%clk 0:01:06]}  Ne5 {[%clk 0:00:58]} 26. Rd1 {[%clk 0:00:59]}  Kc7 {[%clk 0:00:52]} 27. Rfd4 {[%clk 0:00:50]}  Rxd4 {[%clk 0:00:46]} 28. Rxd4 {[%clk 0:00:51]}  Re8 {[%clk 0:00:46]} 29. Ba4 {[%clk 0:00:41]}  Re7 {[%clk 0:00:46]} 30. b4 {[%clk 0:00:38]}  g5 {[%clk 0:00:31]} 31. f4 {[%clk 0:00:32]}  gxf4 {[%clk 0:00:30]} 32. Rxf4 {[%clk 0:00:32]}  Nd3 {[%clk 0:00:31]} 33. Rd4 {[%clk 0:00:27]}  Ne1 {[%clk 0:00:25]} 34. Bc2 {[%clk 0:00:23]}  Nxg2 {[%clk 0:00:17]} 35. Bxf5 {[%clk 0:00:21]}  Re1+ {[%clk 0:00:16]} 36. Kb2 {[%clk 0:00:21]}  Rf1 {[%clk 0:00:12]} 37. Rd7+ {[%clk 0:00:19]}  Kc6 {[%clk 0:00:12]} 38. Rxf7 {[%clk 0:00:19]}  Rf2+ {[%clk 0:00:03]} 39. Kb3 {[%clk 0:00:19]}  Rf3+ {[%clk 0:00:03]} 40. Ka4 {[%clk 0:00:18]}  Re3 {[%clk 0:00:02]} 41. Rf6+ {[%clk 0:00:14]}  Kd5 {[%clk 0:00:02]} 42. Bc8 {[%clk 0:00:10]}  Ne1 {[%clk 0:00:01]} 43. Bxb7+ {[%clk 0:00:10]}  Kc4 {[%clk 0:00:01]} 44. Rf4+ {[%clk 0:00:09]}  Kc3 {[%clk 0:00:01]} 45. c6 {[%clk 0:00:10]}  Nc2 {[%clk 0:00:02]} 46. c7 {[%clk 0:00:10]}  Kb2 {[%clk 0:00:02]} 47. c8=Q {[%clk 0:00:09]}  Ra3+ {[%clk 0:00:03]} 48. Kb5 {[%clk 0:00:10]}  Ne3 {[%clk 0:00:02]} 49. Qh8+ {[%clk 0:00:09]}  Kb1 {[%clk 0:00:02]} 50. Be4+ {[%clk 0:00:07]}  Kc1 {[%clk 0:00:03]} 51. Qa1+ {[%clk 0:00:07]}  Kd2 {[%clk 0:00:03]} 52. Qb2+ {[%clk 0:00:08]}  Nc2 {[%clk 0:00:03]} 53. Qxa3 {[%clk 0:00:09]}  Nxa3+ {[%clk 0:00:03]} 54. Ka4 {[%clk 0:00:08]}  Nb1 {[%clk 0:00:04]} 55. Bxb1 {[%clk 0:00:08]}  Kc3 {[%clk 0:00:04]} 56. h4 {[%clk 0:00:09]}  Kb2 {[%clk 0:00:05]} 57. h5 {[%clk 0:00:09]}  a5 {[%clk 0:00:06]} 58. h6 {[%clk 0:00:10]}  Ka1 {[%clk 0:00:07]} 59. bxa5 {[%clk 0:00:10]}  Kb2 {[%clk 0:00:07]} 60. h7 {[%clk 0:00:11]}  Ka1 {[%clk 0:00:08]} 61. h8=Q+ {[%clk 0:00:11]}  Kxb1 {[%clk 0:00:07]} 62. Qh1+ {[%clk 0:00:12]} 1-0


[Site "https://www.chess.com"]

[Event "Titled Tuesday Blitz August 22 Late 2023"]
[White "Arnold, Ken"]
[Black "Grossboss19"]
[WhiteFideId "2056836"]
[WhiteElo "2416"]
[BlackElo "2530"]
[Result "0-1"]
[Round "8"]
[TimeControl "180+1"]
[Date "2023.08.22"]
[WhiteClock "0:00:00"]
[BlackClock "0:00:29"]
[Board "82"]

1. e4 {[%clk 0:03:00]}  e6 {[%clk 0:02:48]} 2. Nf3 {[%clk 0:03:00]}  c5 {[%clk 0:02:46]} 3. Nc3 {[%clk 0:02:59]}  Nf6 {[%clk 0:02:45]} 4. d4 {[%clk 0:02:57]}  cxd4 {[%clk 0:02:45]} 5. Nxd4 {[%clk 0:02:56]}  Nc6 {[%clk 0:02:45]} 6. Nxc6 {[%clk 0:02:56]}  bxc6 {[%clk 0:02:42]} 7. a3 {[%clk 0:02:54]}  d5 {[%clk 0:02:42]} 8. Bd3 {[%clk 0:02:52]}  Be7 {[%clk 0:02:39]} 9. O-O {[%clk 0:02:52]}  O-O {[%clk 0:02:38]} 10. Qe2 {[%clk 0:02:51]}  h6 {[%clk 0:02:36]} 11. b3 {[%clk 0:02:44]}  d4 {[%clk 0:02:32]} 12. Na4 {[%clk 0:02:39]}  e5 {[%clk 0:02:32]} 13. Bd2 {[%clk 0:02:35]}  Nd7 {[%clk 0:02:29]} 14. Kh1 {[%clk 0:02:32]}  Nb6 {[%clk 0:02:26]} 15. Nxb6 {[%clk 0:02:29]}  axb6 {[%clk 0:02:27]} 16. a4 {[%clk 0:02:28]}  Be6 {[%clk 0:02:26]} 17. Ra2 {[%clk 0:02:00]}  Bg5 {[%clk 0:02:23]} 18. Rfa1 {[%clk 0:01:53]}  Bxd2 {[%clk 0:02:22]} 19. Qxd2 {[%clk 0:01:53]}  Ra5 {[%clk 0:02:11]} 20. b4 {[%clk 0:01:38]}  Ra7 {[%clk 0:02:09]} 21. Ra3 {[%clk 0:01:38]}  c5 {[%clk 0:02:08]} 22. bxc5 {[%clk 0:01:28]}  bxc5 {[%clk 0:02:09]} 23. Qe2 {[%clk 0:01:24]}  Qa8 {[%clk 0:01:43]} 24. a5 {[%clk 0:01:18]}  Rc8 {[%clk 0:01:40]} 25. Bb5 {[%clk 0:00:40]}  c4 {[%clk 0:01:35]} 26. a6 {[%clk 0:00:35]}  Rc5 {[%clk 0:01:31]} 27. Ra5 {[%clk 0:00:33]}  Qb8 {[%clk 0:01:25]} 28. Rb1 {[%clk 0:00:20]}  Bd7 {[%clk 0:01:23]} 29. Qe1 {[%clk 0:00:05]}  Bxb5 {[%clk 0:00:54]} 30. Qb4 {[%clk 0:00:04]}  Qc8 {[%clk 0:00:48]} 31. Rxb5 {[%clk 0:00:04]}  Rxb5 {[%clk 0:00:49]} 32. Qxb5 {[%clk 0:00:04]}  Qxa6 {[%clk 0:00:49]} 33. Qxa6 {[%clk 0:00:04]}  Rxa6 {[%clk 0:00:49]} 34. g3 {[%clk 0:00:03]}  Ra2 {[%clk 0:00:48]} 35. Rc1 {[%clk 0:00:03]}  c3 {[%clk 0:00:46]} 36. Kg2 {[%clk 0:00:03]}  Kh7 {[%clk 0:00:42]} 37. Kf3 {[%clk 0:00:03]}  Kg6 {[%clk 0:00:41]} 38. Ke2 {[%clk 0:00:03]}  Kg5 {[%clk 0:00:41]} 39. f3 {[%clk 0:00:03]}  f5 {[%clk 0:00:40]} 40. h4+ {[%clk 0:00:03]}  Kf6 {[%clk 0:00:40]} 41. Kd3 {[%clk 0:00:03]}  g5 {[%clk 0:00:36]} 42. hxg5+ {[%clk 0:00:03]}  Kxg5 {[%clk 0:00:35]} 43. Rh1 {[%clk 0:00:02]}  fxe4+ {[%clk 0:00:33]} 44. fxe4 {[%clk 0:00:02]}  h5 {[%clk 0:00:32]} 45. Rf1 {[%clk 0:00:02]}  Kg4 {[%clk 0:00:30]} 46. Rf5 {[%clk 0:00:00]}  Ra5 {[%clk 0:00:29]} 0-1


[Site "https://www.chess.com"]

[Event "Titled Tuesday Blitz August 22 Late 2023"]
[White "Gurevich, Dmitry"]
[Black "Battlecruiser_Operational"]
[WhiteFideId "2000407"]
[WhiteElo "2525"]
[BlackElo "2371"]
[Result "1-0"]
[Round "8"]
[TimeControl "180+1"]
[Date "2023.08.22"]
[WhiteClock "0:01:29"]
[BlackClock "0:01:17"]
[Board "84"]

1. d4 {[%clk 0:03:00]}  e6 {[%clk 0:02:59]} 2. c4 {[%clk 0:03:00]}  f5 {[%clk 0:02:59]} 3. g3 {[%clk 0:03:00]}  Nf6 {[%clk 0:02:59]} 4. Bg2 {[%clk 0:03:00]}  Be7 {[%clk 0:03:00]} 5. Nf3 {[%clk 0:02:59]}  O-O {[%clk 0:02:59]} 6. O-O {[%clk 0:02:59]}  d6 {[%clk 0:02:59]} 7. Nc3 {[%clk 0:02:58]}  Ne4 {[%clk 0:03:00]} 8. Qc2 {[%clk 0:02:54]}  Nxc3 {[%clk 0:02:59]} 9. Qxc3 {[%clk 0:02:55]}  Nc6 {[%clk 0:02:52]} 10. b3 {[%clk 0:02:55]}  Bf6 {[%clk 0:02:51]} 11. Bb2 {[%clk 0:02:54]}  Bd7 {[%clk 0:02:51]} 12. Qc2 {[%clk 0:02:46]}  Qe8 {[%clk 0:02:31]} 13. d5 {[%clk 0:02:34]}  exd5 {[%clk 0:02:18]} 14. Bxf6 {[%clk 0:02:31]}  Rxf6 {[%clk 0:02:17]} 15. cxd5 {[%clk 0:02:31]}  Nb4 {[%clk 0:02:16]} 16. Qxc7 {[%clk 0:02:27]}  Nxd5 {[%clk 0:02:16]} 17. Qxb7 {[%clk 0:02:23]}  Nc3 {[%clk 0:02:16]} 18. Nd4 {[%clk 0:02:15]}  Rb8 {[%clk 0:02:14]} 19. Qxa7 {[%clk 0:02:09]}  Bb5 {[%clk 0:02:06]} 20. Nxb5 {[%clk 0:02:03]}  Nxe2+ {[%clk 0:02:04]} 21. Kh1 {[%clk 0:02:02]}  Qxb5 {[%clk 0:02:04]} 22. Rae1 {[%clk 0:01:43]}  Re8 {[%clk 0:01:55]} 23. Qa4 {[%clk 0:01:43]}  Qxa4 {[%clk 0:01:40]} 24. bxa4 {[%clk 0:01:42]}  Kf8 {[%clk 0:01:41]} 25. a5 {[%clk 0:01:37]}  f4 {[%clk 0:01:37]} 26. Bc6 {[%clk 0:01:32]}  Rc8 {[%clk 0:01:33]} 27. Bb7 {[%clk 0:01:31]}  Rc2 {[%clk 0:01:33]} 28. a6 {[%clk 0:01:30]}  Rxa2 {[%clk 0:01:32]} 29. Ra1 {[%clk 0:01:30]}  Rxa1 {[%clk 0:01:26]} 30. Rxa1 {[%clk 0:01:29]}  fxg3 {[%clk 0:01:17]} 31. fxg3 {[%clk 0:01:29]} 1-0


[Site "https://www.chess.com"]

[Event "Titled Tuesday Blitz August 22 Late 2023"]
[White "Bilan, Danila"]
[Black "Sala, Giulia"]
[WhiteFideId "24161918"]
[BlackFideId "2840451"]
[WhiteElo "2493"]
[BlackElo "2336"]
[Result "0-1"]
[Round "8"]
[TimeControl "180+1"]
[Date "2023.08.22"]
[WhiteClock "0:00:00"]
[BlackClock "0:00:11"]
[Board "86"]

1. d4 {[%clk 0:03:00]}  Nf6 {[%clk 0:02:57]} 2. Nf3 {[%clk 0:03:01]}  g6 {[%clk 0:02:57]} 3. Bg5 {[%clk 0:03:01]}  Bg7 {[%clk 0:02:57]} 4. c3 {[%clk 0:03:01]}  O-O {[%clk 0:02:58]} 5. Nbd2 {[%clk 0:03:02]}  d6 {[%clk 0:02:58]} 6. e4 {[%clk 0:03:02]}  Nbd7 {[%clk 0:02:58]} 7. Bc4 {[%clk 0:03:01]}  e5 {[%clk 0:02:56]} 8. O-O {[%clk 0:03:01]}  Qe7 {[%clk 0:02:55]} 9. Qc2 {[%clk 0:02:59]}  b6 {[%clk 0:02:54]} 10. Bd5 {[%clk 0:02:54]}  Rb8 {[%clk 0:02:52]} 11. Bc6 {[%clk 0:02:54]}  Bb7 {[%clk 0:02:50]} 12. Qa4 {[%clk 0:02:48]}  h6 {[%clk 0:02:38]} 13. Bh4 {[%clk 0:02:30]}  g5 {[%clk 0:02:38]} 14. Bg3 {[%clk 0:02:30]}  a5 {[%clk 0:02:22]} 15. Bxb7 {[%clk 0:02:22]}  Rxb7 {[%clk 0:02:23]} 16. Qc6 {[%clk 0:02:23]}  Ra7 {[%clk 0:02:21]} 17. Rfe1 {[%clk 0:02:03]}  a4 {[%clk 0:02:21]} 18. Nc4 {[%clk 0:01:58]}  Nh5 {[%clk 0:02:15]} 19. Ne3 {[%clk 0:01:54]}  Nb8 {[%clk 0:02:06]} 20. Qc4 {[%clk 0:01:48]}  Qe6 {[%clk 0:01:47]} 21. d5 {[%clk 0:01:33]}  Qd7 {[%clk 0:01:43]} 22. Nf5 {[%clk 0:01:32]}  Na6 {[%clk 0:01:39]} 23. b4 {[%clk 0:01:27]}  axb3 {[%clk 0:01:28]} 24. axb3 {[%clk 0:01:27]}  Rfa8 {[%clk 0:01:28]} 25. b4 {[%clk 0:01:25]}  Nb8 {[%clk 0:01:20]} 26. Rxa7 {[%clk 0:01:17]}  Rxa7 {[%clk 0:01:20]} 27. Nd2 {[%clk 0:01:14]}  b5 {[%clk 0:01:11]} 28. Qe2 {[%clk 0:01:09]}  Nf4 {[%clk 0:01:08]} 29. Qg4 {[%clk 0:00:57]}  Ra2 {[%clk 0:01:03]} 30. Nf1 {[%clk 0:00:44]}  f6 {[%clk 0:00:57]} 31. Bxf4 {[%clk 0:00:41]}  exf4 {[%clk 0:00:56]} 32. Qd1 {[%clk 0:00:32]}  Qe8 {[%clk 0:00:46]} 33. Nd2 {[%clk 0:00:27]}  Nd7 {[%clk 0:00:42]} 34. Nf3 {[%clk 0:00:24]}  Ne5 {[%clk 0:00:36]} 35. N3d4 {[%clk 0:00:24]}  Bf8 {[%clk 0:00:22]} 36. Ne6 {[%clk 0:00:23]}  f3 {[%clk 0:00:20]} 37. Ng3 {[%clk 0:00:11]}  h5 {[%clk 0:00:18]} 38. Qb3 {[%clk 0:00:06]}  Rd2 {[%clk 0:00:17]} 39. Nf1 {[%clk 0:00:06]}  Rd3 {[%clk 0:00:16]} 40. Re3 {[%clk 0:00:05]}  fxg2 {[%clk 0:00:16]} 41. Kxg2 {[%clk 0:00:03]}  h4 {[%clk 0:00:16]} 42. Rxd3 {[%clk 0:00:03]}  Nxd3 {[%clk 0:00:17]} 43. Qd1 {[%clk 0:00:03]}  Ne5 {[%clk 0:00:17]} 44. Ne3 {[%clk 0:00:03]}  Qg6 {[%clk 0:00:17]} 45. Qd4 {[%clk 0:00:02]}  g4 {[%clk 0:00:17]} 46. Nf5 {[%clk 0:00:03]}  h3+ {[%clk 0:00:16]} 47. Kf1 {[%clk 0:00:01]}  Qh5 {[%clk 0:00:14]} 48. Qe3 {[%clk 0:00:02]}  g3 {[%clk 0:00:14]} 49. Qxg3+ {[%clk 0:00:02]}  Kf7 {[%clk 0:00:12]} 50. f3 {[%clk 0:00:01]}  Nxf3 {[%clk 0:00:11]} 51. Kf2 {[%clk 0:00:01]}  Ne5 {[%clk 0:00:11]} 52. Ke3 {[%clk 0:00:02]}  Qd1 {[%clk 0:00:11]} 53. Qf2 {[%clk 0:00:02]}  Qd3+ {[%clk 0:00:11]} 54. Kf4 {[%clk 0:00:03]}  Ng6+ {[%clk 0:00:11]} 55. Kg4 {[%clk 0:00:03]}  Ne5+ {[%clk 0:00:11]} 56. Kh5 {[%clk 0:00:02]}  Qxe4 {[%clk 0:00:12]} 57. Nd8+ {[%clk 0:00:02]}  Ke8 {[%clk 0:00:11]} 58. Qh4 {[%clk 0:00:00]}  Qf3+ {[%clk 0:00:11]} 0-1


[Site "https://www.chess.com"]

[Event "Titled Tuesday Blitz August 22 Late 2023"]
[White "Haydon, David L"]
[Black "Blackburn, Jonathan L B"]
[WhiteFideId "415405"]
[BlackFideId "1801090"]
[WhiteElo "2700"]
[BlackElo "2439"]
[Result "0-1"]
[Round "8"]
[TimeControl "180+1"]
[Date "2023.08.22"]
[WhiteClock "0:00:00"]
[BlackClock "0:01:51"]
[Board "88"]

1. d4 {[%clk 0:02:59]}  Nf6 {[%clk 0:02:59]} 2. Nf3 {[%clk 0:02:56]}  g6 {[%clk 0:02:59]} 3. c4 {[%clk 0:02:55]}  Bg7 {[%clk 0:02:59]} 4. Nc3 {[%clk 0:02:54]}  d6 {[%clk 0:03:00]} 5. e4 {[%clk 0:02:52]}  O-O {[%clk 0:03:01]} 6. h3 {[%clk 0:02:51]}  Nbd7 {[%clk 0:02:56]} 7. Bd3 {[%clk 0:02:48]}  e5 {[%clk 0:02:55]} 8. d5 {[%clk 0:02:42]}  Nc5 {[%clk 0:02:54]} 9. O-O {[%clk 0:02:40]}  Nxd3 {[%clk 0:02:53]} 10. Qxd3 {[%clk 0:02:39]}  Nh5 {[%clk 0:02:49]} 11. g4 {[%clk 0:02:16]}  Nf4 {[%clk 0:02:48]} 12. Bxf4 {[%clk 0:02:11]}  exf4 {[%clk 0:02:49]} 13. Rfe1 {[%clk 0:02:05]}  Qe7 {[%clk 0:02:27]} 14. b4 {[%clk 0:01:48]}  a5 {[%clk 0:02:26]} 15. a3 {[%clk 0:01:42]}  axb4 {[%clk 0:02:15]} 16. axb4 {[%clk 0:01:37]}  Rxa1 {[%clk 0:02:16]} 17. Rxa1 {[%clk 0:01:36]}  f5 {[%clk 0:02:17]} 18. exf5 {[%clk 0:01:27]}  gxf5 {[%clk 0:02:16]} 19. Re1 {[%clk 0:01:25]}  Qf6 {[%clk 0:02:10]} 20. Nb5 {[%clk 0:01:10]}  fxg4 {[%clk 0:02:09]} 21. hxg4 {[%clk 0:01:02]}  Bxg4 {[%clk 0:02:09]} 22. Nh2 {[%clk 0:00:43]}  Bf5 {[%clk 0:02:05]} 23. Qf3 {[%clk 0:00:37]}  Qg6+ {[%clk 0:01:59]} 24. Kf1 {[%clk 0:00:29]}  Bd3+ {[%clk 0:01:53]} 25. Re2 {[%clk 0:00:20]}  Re8 {[%clk 0:01:52]} 26. Qxd3 {[%clk 0:00:00]}  Qxd3 {[%clk 0:01:51]} 0-1


[Site "https://www.chess.com"]

[Event "Titled Tuesday Blitz August 22 Late 2023"]
[White "Carroll, Thomas"]
[Black "Chor, Kevin"]
[WhiteFideId "450111"]
[BlackFideId "2090740"]
[WhiteElo "2423"]
[BlackElo "2566"]
[Result "0-1"]
[Round "8"]
[TimeControl "180+1"]
[Date "2023.08.22"]
[WhiteClock "0:00:05"]
[BlackClock "0:00:09"]
[Board "93"]

1. c4 {[%clk 0:03:00]}  Nf6 {[%clk 0:02:59]} 2. g3 {[%clk 0:02:58]}  g6 {[%clk 0:03:00]} 3. Bg2 {[%clk 0:02:59]}  Bg7 {[%clk 0:03:01]} 4. Nf3 {[%clk 0:02:59]}  O-O {[%clk 0:03:01]} 5. O-O {[%clk 0:02:59]}  d6 {[%clk 0:02:57]} 6. Nc3 {[%clk 0:02:59]}  Nc6 {[%clk 0:02:53]} 7. b3 {[%clk 0:02:58]}  Ne4 {[%clk 0:02:49]} 8. Bb2 {[%clk 0:02:57]}  Nxc3 {[%clk 0:02:49]} 9. Bxc3 {[%clk 0:02:56]}  e5 {[%clk 0:02:38]} 10. b4 {[%clk 0:02:43]}  Be6 {[%clk 0:02:32]} 11. Qb3 {[%clk 0:02:25]}  d5 {[%clk 0:02:07]} 12. cxd5 {[%clk 0:02:22]}  Bxd5 {[%clk 0:02:08]} 13. Qb2 {[%clk 0:02:22]}  Nd4 {[%clk 0:01:46]} 14. Nxd4 {[%clk 0:02:12]}  Bxg2 {[%clk 0:01:35]} 15. Nf3 {[%clk 0:01:48]}  Bxf1 {[%clk 0:01:32]} 16. Rxf1 {[%clk 0:01:47]}  f6 {[%clk 0:01:28]} 17. Rc1 {[%clk 0:01:46]}  Qd5 {[%clk 0:01:21]} 18. d4 {[%clk 0:01:46]}  e4 {[%clk 0:01:19]} 19. Nd2 {[%clk 0:01:42]}  f5 {[%clk 0:01:15]} 20. Nf1 {[%clk 0:01:42]}  Rad8 {[%clk 0:01:12]} 21. Ne3 {[%clk 0:01:38]}  Qf7 {[%clk 0:01:12]} 22. d5 {[%clk 0:01:33]}  Bxc3 {[%clk 0:01:06]} 23. Rxc3 {[%clk 0:01:34]}  f4 {[%clk 0:01:02]} 24. Ng4 {[%clk 0:01:31]}  Qg7 {[%clk 0:00:58]} 25. Qc2 {[%clk 0:01:12]}  h5 {[%clk 0:00:39]} 26. Rxc7 {[%clk 0:01:11]}  Rd7 {[%clk 0:00:38]} 27. Rxd7 {[%clk 0:01:01]}  Qxd7 {[%clk 0:00:39]} 28. Ne5 {[%clk 0:00:59]}  Qf5 {[%clk 0:00:22]} 29. Qc3 {[%clk 0:00:30]}  e3 {[%clk 0:00:20]} 30. fxe3 {[%clk 0:00:22]}  fxg3 {[%clk 0:00:19]} 31. Nf3 {[%clk 0:00:20]}  gxh2+ {[%clk 0:00:17]} 32. Kxh2 {[%clk 0:00:20]}  Qxd5 {[%clk 0:00:14]} 33. Qc2 {[%clk 0:00:17]}  Qf5 {[%clk 0:00:13]} 34. Qc7 {[%clk 0:00:15]}  Rf7 {[%clk 0:00:11]} 35. Qb8+ {[%clk 0:00:14]}  Kg7 {[%clk 0:00:08]} 36. Qxa7 {[%clk 0:00:15]}  g5 {[%clk 0:00:07]} 37. Qd4+ {[%clk 0:00:15]}  Kh7 {[%clk 0:00:06]} 38. e4 {[%clk 0:00:08]}  Qf4+ {[%clk 0:00:06]} 39. Kg1 {[%clk 0:00:08]}  g4 {[%clk 0:00:07]} 40. Ne5 {[%clk 0:00:05]}  Qg3+ {[%clk 0:00:07]} 41. Kh1 {[%clk 0:00:05]}  Rf1+ {[%clk 0:00:08]} 42. Qg1 {[%clk 0:00:05]}  Qxg1# {[%clk 0:00:09]} 0-1


[Site "https://www.chess.com"]